bitfinex/quotes_BTCUSD_20240815
["timestamp","ask_amount","ask_price","bid_price","bid_amount"]
[1723753510866,0.1913,56920.0,56919.0,0.002]
[1723753511089,0.63658714,56920.0,56919.0,0.002]
[1723753511314,0.60440254,56920.0,56914.0,0.140562]
[1723753511538,0.35733181,56919.0,56914.0,0.140562]
[1723753511758,0.35733181,56919.0,56915.0,0.14056]
[1723753511997,0.332848,56920.0,56919.0,0.421651]
[1723753511998,0.002,56920.0,56919.0,0.421651]
[1723753512221,0.002,56920.0,56912.0,0.00819]
[1723753512222,0.001,56920.0,56912.0,0.00819]
[1723753512421,0.001,56920.0,56915.0,0.140559]
[1723753512648,0.001,56920.0,56912.0,0.00819]
[1723753512893,0.001,56920.0,56919.0,0.14055]
[1723753512894,0.001902,56920.0,56919.0,0.14055]
[1723753513327,0.001902,56920.0,56919.0,0.702752]
[1723753513559,0.001902,56920.0,56919.0,0.703752]
[1723753513977,0.001902,56920.0,56919.0,0.702752]
[1723753514419,0.001902,56920.0,56919.0,0.704752]
[1723753514626,0.001902,56920.0,56919.0,0.707752]
[1723753514850,0.001902,56920.0,56919.0,0.005]
[1723753514851,1.22509654,56920.0,56919.0,0.005]
[1723753515070,1.34760619,56920.0,56919.0,0.005]
[1723753515284,1.56934059,56920.0,56919.0,0.005]
[1723753515749,1.57912496,56920.0,56919.0,0.005]
[1723753515950,1.86022096,56920.0,56919.0,0.005]
[1723753516361,1.57912496,56920.0,56919.0,0.005]
[1723753516566,1.57912496,56920.0,56912.0,0.00819]
[1723753516567,0.344165,56913.0,56912.0,0.00819]
[1723753516796,0.78281954,56913.0,56912.0,0.00819]
[1723753517003,1.08694954,56913.0,56912.0,0.00819]
[1723753517205,1.36807954,56913.0,56912.0,0.00819]
[1723753517640,1.08694954,56913.0,56912.0,0.00819]
[1723753517852,0.80581954,56913.0,56912.0,0.00819]
[1723753518079,1.43623763,56913.0,56912.0,0.01319]
[1723753518533,1.15510763,56913.0,56912.0,0.01619]
[1723753518659,1.43623763,56913.0,56912.0,0.01619]
[1723753518865,1.71736763,56913.0,56912.0,0.01619]
[1723753519070,1.43623763,56913.0,56912.0,0.01619]
[1723753519273,1.81602047,56913.0,56912.0,0.01619]
[1723753519710,0.124369,56912.0,56908.0,0.00819]
[1723753519911,0.86830227,56909.0,56908.0,0.00819]
[1723753520128,1.54265965,56909.0,56908.0,0.00819]
[1723753520366,0.89458238,56909.0,56908.0,0.00819]
[1723753520666,0.89458238,56909.0,56908.0,0.429922]
[1723753520667,0.1,56909.0,56908.0,0.429922]
[1723753520964,0.124369,56912.0,56911.0,0.42171]
[1723753521124,0.124369,56912.0,56911.0,0.70285]
[1723753521300,0.124369,56912.0,56911.0,0.14057]
[1723753521879,0.124369,56912.0,56911.0,0.42171]
[1723753522198,0.127369,56912.0,56911.0,0.42171]
[1723753522401,0.127369,56912.0,56911.0,0.70285]
[1723753522801,0.127369,56912.0,56911.0,1.06699]
[1723753523007,0.135369,56912.0,56911.0,1.06699]
[1723753523250,0.127369,56912.0,56911.0,1.06699]
[1723753523623,0.129369,56912.0,56911.0,1.06699]
[1723753524192,0.129369,56912.0,56911.0,1.24844803]
[1723753524415,0.001902,56920.0,56911.0,1.24844803]
[1723753524416,0.001902,56920.0,56919.0,0.983853]
[1723753524536,0.001902,56920.0,56919.0,1.23840754]
[1723753525130,0.001902,56920.0,56919.0,1.51950854]
[1723753525373,0.001902,56920.0,56919.0,1.52150854]
[1723753525576,0.001902,56920.0,56919.0,1.57408324]
[1723753525732,0.001902,56920.0,56919.0,1.29098224]
[1723753525945,0.001902,56920.0,56919.0,1.23840754]
[1723753526147,0.001902,56920.0,56919.0,1.24855651]
[1723753526552,0.001902,56920.0,56919.0,1.25055651]
[1723753526780,0.001902,56920.0,56919.0,1.25355651]
[1723753527020,0.002902,56920.0,56919.0,0.718752]
[1723753527385,0.002902,56920.0,56919.0,0.14355]
[1723753527386,0.209402,56920.0,56919.0,0.14355]
[1723753527589,0.209402,56920.0,56919.0,0.424651]
[1723753527941,0.210402,56920.0,56919.0,0.719752]
[1723753528141,0.002902,56920.0,56919.0,0.719752]
[1723753528319,0.002902,56920.0,56919.0,0.705752]
[1723753528320,0.001902,56920.0,56919.0,0.705752]
[1723753528501,0.001902,56920.0,56919.0,0.715752]
[1723753528718,0.002902,56920.0,56919.0,0.715752]
[1723753528865,0.001902,56920.0,56919.0,0.431651]
[1723753529367,0.001902,56920.0,56910.0,0.083]
[1723753529368,0.001902,56920.0,56898.0,0.13143018]
[1723753529369,0.140595,56901.0,56898.0,0.13143018]
[1723753529658,0.140595,56901.0,56893.0,0.0082]
[1723753529659,0.70306,56894.0,56893.0,0.0082]
[1723753529909,1.49478627,56894.0,56893.0,0.0082]
[1723753530139,1.5946694,56894.0,56893.0,0.0082]
[1723753530368,2.15610013,56894.0,56893.0,0.0082]
[1723753530603,1.078285,56884.0,56863.0,0.570952]
[1723753530819,1.45861681,56884.0,56863.0,0.570952]
[1723753531276,1.73989081,56884.0,56867.0,0.1428584]
[1723753531450,1.17734281,56884.0,56867.0,0.2835334]
[1723753531648,1.17734281,56884.0,56875.0,0.140657]
[1723753532054,1.45861681,56884.0,56870.0,0.14067]
[1723753532864,1.55767003,56884.0,56867.0,0.1428574]
[1723753533014,1.55767003,56884.0,56868.0,0.140676]
[1723753533225,1.55767003,56884.0,56870.0,0.140669]
[1723753533396,1.57067003,56884.0,56869.0,0.140673]
[1723753533798,1.57067003,56884.0,56867.0,0.2835354]
[1723753533799,1.56167003,56884.0,56870.0,0.140671]
[1723753533998,1.56167003,56884.0,56871.0,0.140668]
[1723753534199,1.56867003,56884.0,56872.0,0.140666]
[1723753534479,1.56867003,56884.0,56871.0,0.140667]
[1723753534682,1.56867003,56884.0,56867.0,0.5648924]
[1723753534998,1.56867003,56884.0,56871.0,0.140667]
[1723753535208,1.56867003,56884.0,56872.0,0.140665]
[1723753535407,1.56867003,56884.0,56873.0,0.140663]
[1723753536287,1.28739603,56884.0,56874.0,0.14066]
[1723753536491,1.04770581,56884.0,56872.0,0.140665]
[1723753536624,0.140649,56879.0,56872.0,0.140665]
[1723753537066,0.41220354,56879.0,56872.0,0.140665]
[1723753537266,0.27155454,56879.0,56873.0,0.140662]
[1723753537673,0.1,56879.0,56878.0,0.0121613]
[1723753537884,0.09177727,56884.0,56879.0,0.281294]
[1723753538343,0.09177727,56884.0,56883.0,0.140639]
[1723753538549,0.09177727,56884.0,56883.0,0.421918]
[1723753538723,0.09177727,56884.0,56878.0,0.0121613]
[1723753538724,0.140643,56882.0,56878.0,0.0121613]
[1723753538907,0.140645,56881.0,56878.0,0.0121613]
[1723753539102,0.140641,56883.0,56878.0,0.0121613]
[1723753539308,0.140642,56882.0,56878.0,0.0111613]
[1723753539533,0.140639,56883.0,56878.0,0.0111613]
[1723753539734,0.25733181,56884.0,56878.0,0.1518123]
[1723753539887,0.25733181,56884.0,56879.0,0.140648]
[1723753540088,0.140646,56879.0,56878.0,0.0111613]
[1723753540755,0.140646,56879.0,56878.0,0.4341153]
[1723753540963,0.140646,56879.0,56878.0,0.0111613]
[1723753541173,0.140646,56879.0,56878.0,0.1548123]
[1723753541324,0.141646,56879.0,56878.0,0.0161613]
[1723753541712,0.141646,56879.0,56878.0,0.1568123]
[1723753541914,0.141646,56879.0,56878.0,0.0161613]
[1723753542760,0.141646,56879.0,56878.0,0.1568123]
[1723753542962,0.141646,56879.0,56878.0,0.0161613]
[1723753543649,0.45384954,56879.0,56878.0,0.0161613]
[1723753544484,0.31320054,56879.0,56878.0,0.0161613]
[1723753544702,0.45384954,56879.0,56878.0,0.0161613]
[1723753544897,0.141646,56879.0,56878.0,0.0161613]
[1723753545932,0.14143458,56879.0,56878.0,0.0161613]
[1723753546125,0.14143458,56879.0,56878.0,0.1568123]
[1723753547409,0.14143458,56879.0,56878.0,0.0161613]
[1723753547612,0.14143458,56879.0,56878.0,0.1568123]
[1723753548032,0.14143458,56879.0,56878.0,1.2478213]
[1723753548633,0.14143458,56879.0,56878.0,1.41937584]
[1723753549401,0.14043458,56879.0,56878.0,1.41737584]
[1723753549576,0.14043458,56879.0,56878.0,1.2428213]
[1723753549776,0.14143458,56879.0,56878.0,1.2478213]
[1723753550423,0.001,56879.0,56878.0,1.2478213]
[1723753551217,0.002,56879.0,56878.0,1.2546403]
[1723753551869,0.001,56879.0,56878.0,1.2486403]
[1723753552086,0.002,56879.0,56878.0,1.2616403]
[1723753553452,0.002,56879.0,56878.0,1.43319484]
[1723753554346,0.002,56879.0,56878.0,1.2616403]
[1723753556730,0.002,56879.0,56878.0,1.1694403]
[1723753561141,0.002,56879.0,56878.0,1.34099484]
[1723753561341,0.002,56879.0,56878.0,1.72449784]
[1723753561573,0.002,56879.0,56878.0,1.72649784]
[1723753562590,0.002,56879.0,56878.0,1.72149784]
[1723753562791,0.001,56879.0,56878.0,2.02280084]
[1723753563077,0.002,56879.0,56878.0,2.07201084]
[1723753563275,0.001,56879.0,56878.0,2.05901084]
[1723753563429,0.001,56879.0,56878.0,2.05101084]
[1723753563653,0.0019009,56879.0,56878.0,2.05101084]
[1723753564033,0.0019009,56879.0,56878.0,2.02501084]
[1723753564236,0.0019009,56879.0,56878.0,2.03901084]
[1723753564442,0.0019009,56879.0,56878.0,1.74770784]
[1723753565156,0.08577727,56890.0,56889.0,0.984371]
[1723753566383,0.000902,56893.0,56892.0,1.267553]
[1723753566579,0.08577727,56911.0,56909.0,0.421725]
[1723753566580,0.51466362,56910.0,56909.0,0.421725]
[1723753567004,0.08577727,56911.0,56910.0,0.702862]
[1723753567456,0.08577727,56911.0,56910.0,0.984007]
[1723753568022,0.08577727,56924.0,56904.0,0.1656]
[1723753568023,0.197002,56920.0,56916.0,0.421674]
[1723753568234,0.197002,56920.0,56916.0,0.983906]
[1723753568681,0.000902,56920.0,56919.0,0.983853]
[1723753569117,0.000902,56920.0,56919.0,1.83151854]
[1723753569347,0.000902,56920.0,56919.0,1.84151854]
[1723753569560,0.000902,56920.0,56919.0,1.84134968]
[1723753569761,0.000902,56920.0,56919.0,1.45824868]
[1723753569995,0.000902,56920.0,56919.0,1.42303868]
[1723753570216,0.000902,56920.0,56919.0,0.99368414]
[1723753570431,0.000902,56920.0,56919.0,0.71258314]
[1723753571034,0.001902,56920.0,56919.0,0.74058314]
[1723753571234,0.200502,56920.0,56919.0,0.449651]
[1723753571582,0.200502,56920.0,56919.0,0.730752]
[1723753572016,0.200502,56920.0,56919.0,1.18340754]
[1723753572017,0.001902,56920.0,56919.0,1.18340754]
[1723753572352,0.001902,56920.0,56919.0,1.16940754]
[1723753572652,0.000902,56920.0,56919.0,1.16940754]
[1723753572787,0.001902,56920.0,56919.0,1.18340754]
[1723753572985,0.001902,56920.0,56919.0,1.16940754]
[1723753573388,0.001902,56920.0,56919.0,1.18340754]
[1723753574626,0.001902,56920.0,56919.0,1.33990754]
[1723753575349,0.001902,56920.0,56919.0,1.33790754]
[1723753575753,0.001902,56920.0,56919.0,1.71320854]
[1723753575957,0.001902,56920.0,56919.0,1.43210754]
[1723753576562,0.001902,56920.0,56919.0,1.41810754]
[1723753577109,0.001902,56920.0,56919.0,1.43210754]
[1723753577263,0.000902,56920.0,56919.0,1.41810754]
[1723753577465,0.001902,56920.0,56919.0,1.43210754]
[1723753577875,0.001902,56920.0,56919.0,1.41810754]
[1723753578255,0.001902,56920.0,56919.0,1.40410754]
[1723753578685,0.001902,56920.0,56919.0,0.997853]
[1723753579057,0.001902,56920.0,56919.0,0.716752]
[1723753579412,0.001902,56920.0,56919.0,0.435651]
[1723753579536,0.001902,56920.0,56919.0,0.014]
[1723753579744,0.364802,56920.0,56919.0,0.014]
[1723753579942,0.363802,56920.0,56910.0,0.281145]
[1723753580163,0.363802,56920.0,56893.0,0.1796]
[1723753580164,1.066542,56920.0,56919.0,0.014]
[1723753580360,0.908446,56920.0,56919.0,0.028]
[1723753580587,0.62735,56920.0,56919.0,0.014]
[1723753580815,0.463802,56920.0,56919.0,0.024]
[1723753581388,0.463802,56920.0,56919.0,0.01]
[1723753581590,0.363802,56920.0,56919.0,0.01]
[1723753581791,0.363802,56920.0,56919.0,0.440651]
[1723753582016,0.363802,56920.0,56919.0,0.019]
[1723753582191,0.363802,56920.0,56919.0,0.421651]
[1723753582398,0.365802,56920.0,56919.0,0.421651]
[1723753582712,0.363802,56920.0,56919.0,0.703752]
[1723753583027,0.365802,56920.0,56919.0,0.702752]
[1723753583438,0.366802,56920.0,56919.0,0.702752]
[1723753584009,0.209102,56920.0,56919.0,0.983853]
[1723753584214,0.003902,56920.0,56919.0,0.983853]
[1723753584631,0.003902,56920.0,56919.0,1.31290754]
[1723753584814,0.002902,56920.0,56919.0,1.15540754]
[1723753585572,0.002902,56920.0,56919.0,1.15740754]
[1723753585774,0.000902,56920.0,56919.0,1.44450854]
[1723753585972,0.000902,56920.0,56919.0,1.16140754]
[1723753586195,0.000902,56920.0,56919.0,1.16240754]
[1723753586400,0.000902,56920.0,56919.0,1.15540754]
[1723753586562,0.000902,56920.0,56919.0,1.16740754]
[1723753586753,0.000902,56920.0,56919.0,1.18040754]
[1723753586956,0.000902,56920.0,56919.0,1.16740754]
[1723753587160,0.000902,56920.0,56919.0,1.16940754]
[1723753587357,0.000902,56920.0,56919.0,1.18040754]
[1723753587598,0.000902,56920.0,56919.0,1.16740754]
[1723753587790,0.000902,56920.0,56919.0,1.15540754]
[1723753588192,0.000902,56920.0,56919.0,1.16940754]
[1723753589135,0.000902,56920.0,56919.0,1.18240754]
[1723753589343,0.000902,56920.0,56919.0,1.16940754]
[1723753589549,0.000902,56920.0,56919.0,1.16740754]
[1723753589758,0.000902,56920.0,56919.0,1.18040754]
[1723753589945,0.000902,56920.0,56919.0,1.16740754]
[1723753590130,0.000902,56920.0,56919.0,1.18040754]
[1723753590569,0.000902,56929.0,56919.0,1.18040754]
[1723753590570,0.000902,56929.0,56928.0,0.70264]
[1723753590883,0.000902,56929.0,56928.0,0.983696]
[1723753592314,0.000902,56929.0,56928.0,0.99375589]
[1723753592539,0.000902,56929.0,56928.0,0.70264]
[1723753592742,0.000902,56929.0,56928.0,0.70664]
[1723753593145,0.000902,56929.0,56928.0,0.71164]
[1723753594688,0.000902,56929.0,56928.0,0.430584]
[1723753594890,0.204202,56929.0,56928.0,0.430584]
[1723753595107,0.366402,56929.0,56928.0,0.430584]
[1723753596006,0.366402,56929.0,56928.0,0.149528]
[1723753596209,0.366402,56929.0,56928.0,0.430584]
[1723753596562,0.366402,56929.0,56928.0,0.149528]
[1723753596770,0.366402,56929.0,56928.0,0.430584]
[1723753597575,0.08577727,56930.0,56929.0,0.140525]
[1723753597813,0.08340008,56930.0,56929.0,0.140525]
[1723753597989,0.08340008,56930.0,56929.0,0.421576]
[1723753598683,0.08340008,56930.0,56929.0,0.711627]
[1723753598884,0.00902001,56936.0,56935.0,0.140511]
[1723753599288,0.00902001,56936.0,56935.0,0.702555]
[1723753600186,0.00902001,56936.0,56935.0,0.983577]
[1723753600649,0.00902001,56936.0,56935.0,0.99374418]
[1723753601233,0.00902001,56936.0,56935.0,1.16529872]
[1723753601441,0.00902001,56936.0,56935.0,1.16729872]
[1723753602119,0.00902001,56936.0,56935.0,1.46132072]
[1723753602563,0.00902001,56936.0,56935.0,1.45932072]
[1723753602830,0.00902001,56936.0,56935.0,1.47332072]
[1723753603507,0.00902001,56936.0,56935.0,1.44632072]
[1723753603732,0.00902001,56936.0,56935.0,1.46032072]
[1723753603964,0.00902001,56936.0,56935.0,1.47432072]
[1723753604312,0.00902001,56936.0,56935.0,1.46232072]
[1723753604510,0.00902001,56936.0,56935.0,1.47632072]
[1723753605612,0.00902001,56936.0,56935.0,1.84302072]
[1723753606032,0.00902001,56936.0,56935.0,2.30364272]
[1723753606247,0.16542001,56950.0,56949.0,0.983335]
[1723753606248,0.00902001,56950.0,56949.0,0.983335]
[1723753606701,0.00902001,56950.0,56949.0,1.15488954]
[1723753607445,0.00902001,56950.0,56949.0,1.15888954]
[1723753607602,0.00902001,56950.0,56949.0,1.62144254]
[1723753607795,0.00902001,56950.0,56949.0,1.61744254]
[1723753608227,0.00902001,56950.0,56949.0,1.62344254]
[1723753609079,0.00902001,56950.0,56949.0,1.62844254]
[1723753609279,0.00902001,56950.0,56949.0,1.62344254]
[1723753609482,0.00902001,56950.0,56949.0,1.63544254]
[1723753610022,0.00902001,56950.0,56949.0,1.62344254]
[1723753610154,0.00902001,56950.0,56949.0,1.83354254]
[1723753610352,0.00902001,56950.0,56949.0,1.82536407]
[1723753610561,0.00902001,56950.0,56949.0,1.83436407]
[1723753610775,0.00902001,56950.0,56949.0,1.84636407]
[1723753611175,0.00436639,56950.0,56949.0,2.16352707]
[1723753611413,0.0009009,56958.0,56957.0,1.266108]
[1723753611644,0.0009009,56958.0,56957.0,1.64366254]
[1723753611994,0.0009009,56958.0,56957.0,1.80406254]
[1723753613133,0.0009009,56958.0,56957.0,1.81806254]
[1723753613356,0.0009009,56958.0,56957.0,1.80406254]
[1723753613591,0.0009009,56958.0,56957.0,1.81806254]
[1723753613998,0.0009009,56958.0,56957.0,1.81606254]
[1723753614246,0.0009009,56958.0,56957.0,1.62001619]
[1723753615055,0.0009009,56958.0,56957.0,1.63601619]
[1723753615260,0.0009009,56958.0,56957.0,1.62201619]
[1723753615646,0.0009009,56958.0,56957.0,1.63601619]
[1723753615847,0.0009009,56958.0,56957.0,1.60801619]
[1723753616750,0.0009009,56958.0,56957.0,1.62201619]
[1723753617371,0.0009009,56958.0,56957.0,1.63601619]
[1723753617716,0.0009009,56958.0,56957.0,1.91692919]
[1723753617919,0.0009009,56958.0,56957.0,2.11912919]
[1723753618585,0.0009009,56958.0,56957.0,1.81021619]
[1723753618786,0.0009009,56958.0,56957.0,1.82421619]
[1723753618988,0.0009009,56958.0,56957.0,1.83821619]
[1723753619192,0.0009009,56958.0,56957.0,1.82421619]
[1723753619600,0.0009009,56958.0,56957.0,1.83821619]
[1723753619803,0.0009009,56958.0,56957.0,1.82421619]
[1723753620211,0.0009009,56958.0,56957.0,1.83821619]
[1723753620431,0.0009009,56964.0,56960.0,0.002]
[1723753620612,0.0009009,56964.0,56963.0,0.983094]
[1723753620836,0.0009009,56964.0,56963.0,1.15464854]
[1723753621019,0.0009009,56964.0,56963.0,1.43553254]
[1723753621417,0.0009009,56964.0,56963.0,1.43753254]
[1723753621631,0.0009009,56964.0,56963.0,1.43553254]
[1723753621973,0.3580009,56964.0,56963.0,0.70221]
[1723753622513,0.3580009,56964.0,56963.0,0.72721]
[1723753622717,0.3580009,56964.0,56963.0,0.446326]
[1723753622871,0.3580009,56964.0,56963.0,0.433326]
[1723753623074,0.3580009,56964.0,56963.0,0.026]
[1723753623075,0.40237872,56964.0,56963.0,0.026]
[1723753623288,0.3580009,56964.0,56963.0,0.026]
[1723753623499,0.3580009,56964.0,56963.0,0.012]
[1723753623696,0.3580009,56964.0,56963.0,0.153442]
[1723753623697,0.3558009,56964.0,56963.0,0.153442]
[1723753623920,0.3558009,56964.0,56963.0,0.026]
[1723753624293,0.3558009,56964.0,56963.0,0.306884]
[1723753624523,0.3558009,56964.0,56963.0,0.72821]
[1723753624721,0.3558009,56964.0,56963.0,1.009094]
[1723753624927,0.1949009,56964.0,56963.0,0.996094]
[1723753625127,0.1949009,56964.0,56963.0,0.983094]
[1723753625301,0.1959009,56964.0,56963.0,0.985094]
[1723753625675,0.0009009,56964.0,56963.0,0.99403066]
[1723753625850,0.0009009,56964.0,56963.0,0.99703066]
[1723753626093,0.0009009,56964.0,56963.0,1.4514692]
[1723753626264,0.0009009,56964.0,56963.0,1.6171692]
[1723753626495,0.0009009,56964.0,56963.0,1.8247692]
[1723753626697,0.0009009,56964.0,56963.0,1.8237692]
[1723753626914,0.0009009,56964.0,56963.0,1.8197692]
[1723753627130,0.0009009,56964.0,56963.0,1.8227692]
[1723753627319,0.0009009,56964.0,56963.0,1.8327692]
[1723753627450,0.0009009,56964.0,56963.0,2.1106532]
[1723753627894,0.0009009,56964.0,56963.0,2.1246532]
[1723753628095,0.0009009,56964.0,56963.0,2.2246532]
[1723753628296,0.009009,56977.0,56963.0,2.2246532]
[1723753628297,0.009009,56977.0,56976.0,0.982866]
[1723753628452,0.009009,56977.0,56976.0,1.15442054]
[1723753628657,0.009009,56977.0,56976.0,1.43523954]
[1723753629873,0.009009,56977.0,56976.0,2.09555854]
[1723753630078,0.00902001,56986.0,56981.0,0.984782]
[1723753630279,0.00902001,56986.0,56981.0,1.15633654]
[1723753630475,0.00902001,56986.0,56981.0,1.43713154]
[1723753630896,0.00902001,56986.0,56981.0,1.44514335]
[1723753631103,0.00902001,56986.0,56981.0,1.44714335]
[1723753632305,0.00902001,56986.0,56981.0,1.72793835]
[1723753632432,0.00902001,56986.0,56981.0,2.10063835]
[1723753632633,0.00902001,56986.0,56985.0,1.265487]
[1723753632838,0.00599353,56986.0,56985.0,1.61664154]
[1723753633044,0.009009,56993.0,56992.0,0.984593]
[1723753633302,0.009009,56993.0,56992.0,1.43488854]
[1723753635104,0.009009,56993.0,56992.0,1.44488854]
[1723753635645,0.009009,56993.0,56992.0,1.61038854]
[1723753635840,0.009009,56993.0,56992.0,2.07072954]
[1723753636456,0.009009,56993.0,56992.0,2.35912954]
[1723753636884,0.009009,56993.0,56992.0,2.38712954]
[1723753637115,0.009009,56993.0,56992.0,1.45910082]
[1723753637573,0.009009,56993.0,56992.0,1.47310082]
[1723753637811,0.009009,56993.0,56992.0,1.93344182]
[1723753638064,0.00902001,57001.0,56999.0,1.265177]
[1723753638284,0.00902001,57001.0,56999.0,1.43673154]
[1723753639155,0.00902001,57001.0,56999.0,1.59923154]
[1723753639352,0.00902001,57001.0,57000.0,1.265154]
[1723753639583,0.000902,57003.0,57002.0,0.002]
[1723753639792,0.000902,57003.0,57002.0,1.15397254]
[1723753639963,0.000902,57003.0,57002.0,1.53466354]
[1723753641188,0.000902,57003.0,57002.0,1.54866354]
[1723753641407,0.000902,57003.0,57002.0,1.56466354]
[1723753641943,0.000902,57003.0,57002.0,1.57449203]
[1723753643472,0.000902,57003.0,57002.0,1.57249203]
[1723753643624,0.205502,57003.0,57002.0,1.57249203]
[1723753643971,0.000902,57003.0,57002.0,1.57249203]
[1723753645707,0.000902,57003.0,57002.0,1.85518303]
[1723753646079,0.000902,57003.0,57002.0,1.57449203]
[1723753646478,0.000902,57003.0,57002.0,1.85518303]
[1723753646680,0.00902001,57008.0,57002.0,1.85518303]
[1723753646681,0.00902001,57008.0,57007.0,0.152333]
[1723753646895,0.2046,57022.0,57011.0,0.37931]
[1723753647106,0.2046,57022.0,57014.0,1.75024054]
[1723753647436,0.213609,57034.0,57033.0,0.420808]
[1723753647582,0.213609,57034.0,57033.0,1.262425]
[1723753647826,0.213609,57034.0,57033.0,1.43397954]
[1723753648685,0.213609,57034.0,57033.0,1.15344054]
[1723753649282,0.009009,57034.0,57033.0,1.15544054]
[1723753649549,0.009009,57034.0,57033.0,1.43597954]
[1723753649742,0.009009,57034.0,57033.0,1.71651854]
[1723753649911,0.009009,57034.0,57033.0,1.61247954]
[1723753650264,0.009009,57034.0,57033.0,1.44997954]
[1723753650579,0.009009,57034.0,57033.0,1.46002848]
[1723753650841,0.009009,57034.0,57033.0,1.44602848]
[1723753651013,0.009009,57034.0,57033.0,1.45802848]
[1723753651594,0.009009,57034.0,57033.0,1.17748948]
[1723753651595,0.09478627,57034.0,57033.0,1.17748948]
[1723753651845,0.26318627,57034.0,57033.0,1.17748948]
[1723753652042,0.26318627,57034.0,57033.0,0.72539594]
[1723753652287,0.26318627,57034.0,57033.0,0.73939594]
[1723753652479,0.26318627,57034.0,57033.0,0.701347]
[1723753652693,0.26318627,57034.0,57033.0,0.715347]
[1723753652859,0.26318627,57034.0,57033.0,0.729347]
[1723753653063,0.45788627,57034.0,57033.0,0.715347]
[1723753653482,0.45788627,57034.0,57033.0,0.729347]
[1723753653657,0.45788627,57034.0,57033.0,0.701347]
[1723753654119,0.45788627,57034.0,57033.0,0.442808]
[1723753655241,0.45788627,57034.0,57033.0,0.022]
[1723753655780,0.59815327,57034.0,57033.0,0.022]
[1723753655976,0.45788627,57034.0,57033.0,0.022]
[1723753656610,0.45788627,57034.0,57033.0,0.012]
[1723753656788,0.45788627,57034.0,57033.0,0.023]
[1723753657304,0.45788627,57034.0,57033.0,0.012]
[1723753657736,0.45788627,57034.0,57033.0,0.017]
[1723753658350,0.45788627,57034.0,57010.0,0.280648]
[1723753658351,0.1581,57031.0,57010.0,0.280648]
[1723753658639,0.62071544,57034.0,57010.0,0.420978]
[1723753658640,0.3673,57011.0,57010.0,0.420978]
[1723753658871,0.08577727,57017.0,57010.0,0.420978]
[1723753658872,0.168,57017.0,57016.0,0.420933]
[1723753659082,0.168,57017.0,57004.0,0.0099078]
[1723753659282,0.08577727,57014.0,57013.0,0.420955]
[1723753659491,0.08577727,57014.0,57013.0,0.701592]
[1723753659492,0.2092,57014.0,57013.0,0.701592]
[1723753660469,0.2092,57014.0,57013.0,0.420955]
[1723753660696,0.2092,57014.0,57013.0,0.701592]
[1723753660886,0.2092,57014.0,57013.0,0.705592]
[1723753661761,0.2092,57014.0,57013.0,0.709592]
[1723753661943,0.2092,57014.0,57013.0,0.705592]
[1723753662094,0.2092,57014.0,57013.0,0.701592]
[1723753662295,0.2092,57014.0,57013.0,0.705592]
[1723753662499,0.2092,57014.0,57013.0,0.704592]
[1723753662876,0.2092,57014.0,57013.0,0.705592]
[1723753663078,0.2092,57014.0,57013.0,0.709592]
[1723753663910,0.2092,57014.0,57013.0,0.990229]
[1723753664511,0.2092,57014.0,57013.0,0.709592]
[1723753664739,0.2092,57014.0,57013.0,0.428955]
[1723753665556,0.2092,57014.0,57013.0,0.004]
[1723753665758,0.2057,57012.0,57006.0,0.280671]
[1723753665963,0.2057,57012.0,57007.0,0.280665]
[1723753665964,0.1563,57011.0,57007.0,0.280665]
[1723753666187,0.15427754,57011.0,57010.0,0.140326]
[1723753666947,0.15427754,57011.0,57010.0,0.420978]
[1723753668320,0.08577727,57016.0,57015.0,0.42094]
[1723753668517,0.08577727,57016.0,57015.0,0.701567]
[1723753669701,0.08577727,57016.0,57015.0,0.703567]
[1723753669906,0.08577727,57016.0,57015.0,0.704567]
[1723753671450,0.08577727,57016.0,57015.0,0.42394]
[1723753672225,0.08577727,57016.0,57015.0,0.42584]
[1723753672642,0.08577727,57016.0,57015.0,0.145213]
[1723753672852,0.28097727,57016.0,57015.0,0.145213]
[1723753673330,0.28097727,57016.0,57015.0,0.42584]
[1723753673561,0.1952,57016.0,57015.0,0.42584]
[1723753675846,0.1952,57016.0,57015.0,0.706467]
[1723753681800,0.1933,57016.0,57015.0,0.704567]
[1723753682460,0.1933,57016.0,57015.0,0.003]
[1723753682696,0.1933,57016.0,57015.0,0.42394]
[1723753683127,0.1933,57016.0,57015.0,0.003]
[1723753683366,0.1933,57016.0,57015.0,0.143313]
[1723753684309,0.19419981,57016.0,57015.0,0.143313]
[1723753685475,0.19419981,57016.0,57015.0,0.42394]
[1723753687856,0.19419981,57016.0,57015.0,0.42294]
[1723753688019,0.19619981,57016.0,57015.0,0.42294]
[1723753688543,0.19419981,57016.0,57015.0,0.42294]
[1723753688757,0.19519981,57016.0,57015.0,0.42094]
[1723753688932,0.19719981,57016.0,57015.0,0.42094]
[1723753689555,0.19719981,57016.0,57015.0,0.42194]
[1723753689759,0.19519981,57016.0,57015.0,0.42094]
[1723753690167,0.19419981,57016.0,57015.0,0.42194]
[1723753690461,0.19419981,57016.0,57015.0,0.42094]
[1723753690644,0.19419981,57016.0,57015.0,0.42294]
[1723753691261,0.19419981,57016.0,57015.0,0.42394]
[1723753695807,0.19419981,57016.0,57015.0,0.424759]
[1723753699879,0.19419981,57016.0,57015.0,0.144132]
[1723753701254,0.19419981,57016.0,57015.0,0.424759]
[1723753703372,0.19419981,57016.0,57015.0,0.003819]
[1723753703598,0.27997708,57016.0,57015.0,0.003819]
[1723753704694,0.42028808,57016.0,57015.0,0.003819]
[1723753704909,0.27997708,57016.0,57015.0,0.003819]
[1723753705142,0.08577727,57016.0,57015.0,0.003819]
[1723753705392,0.95553227,57016.0,57015.0,0.003819]
[1723753705616,1.00814812,57016.0,57015.0,0.003819]
[1723753705856,1.12708681,57016.0,57015.0,0.003819]
[1723753706103,1.12708681,57016.0,57015.0,0.002819]
[1723753706316,0.84646481,57016.0,57015.0,0.002819]
[1723753706536,0.42753181,57016.0,57015.0,0.000819]
[1723753706757,0.1702,57016.0,57015.0,0.000819]
[1723753706957,0.1692,57016.0,57015.0,0.000819]
[1723753707403,0.1712,57016.0,57015.0,0.000819]